fUST/lending_fUST_20260406
["ID","MTS","AMOUNT","RATE_DAILY","PERIOD"]
[419876115,1775457038464,-500.0,0.00022689,2]
[419876117,1775457038474,-500.0,0.00022689,2]
[419876119,1775457038484,-500.0,0.00022689,2]
[419876121,1775457038493,-500.0,0.00022689,2]
[419876123,1775457038503,-204.50226624,0.00022689,2]
[419876127,1775457038532,-74.25949351,0.00022689,2]
[419876129,1775457038541,-500.0,0.00022689,2]
[419876131,1775457038551,-500.0,0.00022689,2]
[419876133,1775457038560,-500.0,0.00022689,2]
[419876135,1775457038569,-500.0,0.00022689,2]
[419876137,1775457038578,-500.0,0.00022689,2]
[419876139,1775457038587,-500.0,0.00022689,2]
[419876141,1775457038596,-231.24104863,0.00022689,2]
[419876142,1775457038605,-500.0,0.00022689,2]
[419876144,1775457038615,-500.0,0.00022689,2]
[419876146,1775457038624,-500.0,0.00022689,2]
[419876148,1775457038633,-500.0,0.00022689,2]
[419876150,1775457038642,-500.0,0.00022689,2]
[419876152,1775457038652,-500.0,0.00022689,2]
[419876154,1775457038661,-500.0,0.00022689,2]
[419876156,1775457038670,-536.66205773,0.00022689,2]
[419876157,1775457038679,-185.23815799,0.00022689,2]
[419876158,1775457038688,-285.32033084,0.00022689,2]
[419876159,1775457038698,-500.0,0.00022689,2]
[419876160,1775457038707,-500.0,0.00022689,2]
[419876162,1775457038716,-528.61056823,0.00022689,2]
[419876163,1775457038726,-500.0,0.00022689,2]
[419876165,1775457038735,-500.0,0.00022689,2]
[419876166,1775457038744,-500.0,0.00022689,2]
[419876168,1775457038753,-500.0,0.00022689,2]
[419876169,1775457038763,-417.82640646,0.00022689,2]
[419876171,1775457038772,-33979.07926945,0.0002269,2]
[419876295,1775457041038,-26177.23766617,0.0002269,2]
[419876729,1775457048495,-4929.09206155,0.00022671,2]
[419876730,1775457048504,-625.59,0.0002268,10]
[419876731,1775457048514,-734.30793845,0.0002269,2]
[419876802,1775457246828,160.0,0.00032877,120]
[419876803,1775457262633,160.83,0.00032877,120]
[419876808,1775457634896,70268.63296066,0.00032877,120]
[419876809,1775457753952,660.0,0.0003,120]
[419876810,1775458130972,302.8533,0.00032877,120]
[419876825,1775458232514,-163.08626226,0.00013159,2]
[419876826,1775458232524,-218.71753151,0.00013292,2]
[419876827,1775458232536,-631.87264066,0.00013292,2]
[419876877,1775458238651,-2831.78523744,0.00013292,2]
[419876883,1775458238705,-1317.62459039,0.00013292,2]
[419876886,1775458238714,-1000.0,0.00013699,2]
[419876888,1775458238724,-745.09798256,0.00014352,2]
[419876890,1775458238733,-1200.0,0.00015745,2]
[419876892,1775458238742,-1425.80766274,0.00015746,2]
[419876894,1775458238752,-1680.0,0.00017306,2]
[419876896,1775458238761,-250.0,0.00017387,2]
[419876898,1775458238771,-156.0,0.00018426,2]
[419876913,1775458238905,-300.0,0.00020747,2]
[419876915,1775458238915,-300.0,0.00020747,2]
[419876917,1775458238925,-317.73526645,0.00020748,2]
[419876919,1775458238934,-1269.67012472,0.00020748,2]
[419876921,1775458238944,-583.41623238,0.00020748,2]
[419876923,1775458238953,-2053.04340186,0.00020877,2]
[419877104,1775458241332,-2288.72719031,0.00020877,2]
[419877164,1775458246927,-5000.0,0.00020668,2]
[419877165,1775458246937,-227.32462503,0.00020877,2]
[419877166,1775458246946,-161.0,0.000209,2]
[419877167,1775458246957,-2453.1967525,0.00020931,2]
[419877168,1775458246967,-324.9815827,0.00021529,2]
[419877169,1775458246977,-209.9345209,0.00021918,2]
[419877170,1775458246987,-166.0,0.00022,2]
[419877171,1775458246996,-158.0,0.00022,2]
[419877172,1775458247006,-154.0,0.00022,2]
[419877173,1775458247017,-152.0,0.00022,2]
[419877174,1775458247027,-455.2232197,0.00022351,2]
[419877176,1775458247037,-324.9587121,0.00022351,2]
[419877177,1775458247046,-324.344952,0.00022354,2]
[419877178,1775458247056,-151.0,0.00022364,2]
[419877179,1775458247066,-293.38,0.0002258,10]
[419877180,1775458247076,-545.69,0.0002258,10]
[419877181,1775458247086,-454.74,0.0002258,10]
[419877182,1775458247095,-21082.94235738,0.0002259,2]
[419877183,1775458247107,-4602.33260778,0.0002259,2]
[419877207,1775458298226,-217521.84647492,0.00034753,120]
[419877208,1775458298253,-154.23770236,0.00034753,120]
[419877209,1775458298279,-519.88068394,0.00034753,120]
[419877210,1775458298305,-155.53562348,0.00034753,120]
[419877211,1775458298331,-1080.0,0.00034753,120]
[419877212,1775458298358,-152.49546778,0.00034753,120]
[419877213,1775458298384,-151.33694691,0.00034753,120]
[419877214,1775458298410,-1006.43,0.00034753,120]
[419877215,1775458298438,-313.71158053,0.00034753,120]
[419877216,1775458298466,-313.71158053,0.00034753,120]
[419877217,1775458298492,-315.47207492,0.00034753,120]
[419877218,1775458298520,-313.71158053,0.00034753,120]
[419877219,1775458298546,-315.47207492,0.00034753,120]
[419877220,1775458298575,-313.71158053,0.00034753,120]
[419877221,1775458298602,-313.71158053,0.00034753,120]
[419877222,1775458298629,-315.47207492,0.00034753,120]
[419877223,1775458298656,-315.47207492,0.00034753,120]
[419877224,1775458298683,-313.71158053,0.00034753,120]
[419877225,1775458298712,-315.47207492,0.00034753,120]
[419877226,1775458298739,-313.71158053,0.00034753,120]
[419877227,1775458298765,-315.47207492,0.00034753,120]
[419877228,1775458298790,-315.47207492,0.00034753,120]
[419877229,1775458298815,-315.47207492,0.00034753,120]
[419877230,1775458298840,-315.47207492,0.00034753,120]
[419877231,1775458298865,-315.47207492,0.00034753,120]
[419877232,1775458298891,-315.47207492,0.00034753,120]
[419877233,1775458298918,-315.47207492,0.00034753,120]
[419877234,1775458298943,-315.47207492,0.00034753,120]
[419877235,1775458298970,-315.47207492,0.00034753,120]
[419877236,1775458298995,-315.47207492,0.00034753,120]
[419877237,1775458299022,-156.85579025,0.00034753,120]
[419877238,1775458299047,-500.0,0.00034753,120]
[419877239,1775458299071,-500.0,0.00034753,120]
[419877240,1775458299095,-614.75524809,0.00034753,120]
[419877241,1775458299118,-401.98970566,0.00034753,120]
[419877242,1775458299144,-500.0,0.00034753,120]
[419877243,1775458299169,-1057.06444621,0.00034753,120]
[419877244,1775458299296,-722.62350037,0.00034753,120]
[419877245,1775458299323,-3471.75594435,0.00034753,120]
[419877246,1775458299348,-156.68378206,0.00034753,120]
[419877247,1775458299373,-154.65851127,0.00034753,120]
[419877248,1775458299399,-500.0,0.00034753,120]
[419877249,1775458299424,-1110.17,0.00034753,120]
[419877250,1775458299448,-1110.17,0.00034753,120]
[419877251,1775458299473,-1110.17,0.00034753,120]
[419877252,1775458299498,-1110.17,0.00034753,120]
[419877253,1775458299522,-1110.17,0.00034753,120]
[419877254,1775458299548,-1110.17,0.00034753,120]
[419877255,1775458299574,-1110.17,0.00034753,120]
[419877256,1775458299599,-1110.17,0.00034753,120]
[419877257,1775458299623,-1110.17,0.00034753,120]
[419877258,1775458299648,-1110.17,0.00034753,120]
[419877259,1775458299675,-1110.17,0.00034753,120]
[419877260,1775458299700,-1110.17,0.00034753,120]
[419877261,1775458299726,-1110.17,0.00034753,120]
[419877262,1775458299751,-1110.17,0.00034753,120]
[419877263,1775458299776,-1110.17,0.00034753,120]
[419877264,1775458299800,-1110.17,0.00034753,120]
[419877265,1775458299826,-1110.17,0.00034753,120]
[419877266,1775458299851,-1110.17,0.00034753,120]
[419877267,1775458299875,-1110.17,0.00034753,120]
[419877268,1775458299900,-1110.17,0.00034753,120]
[419877269,1775458299925,-1110.17,0.00034753,120]
[419877270,1775458299949,-1110.17,0.00034753,120]
[419877271,1775458299974,-1110.17,0.00034753,120]
[419877272,1775458299999,-1110.17816653,0.00034753,120]
[419877273,1775458300026,-716.41,0.00034753,120]
[419877274,1775458300053,-716.41,0.00034753,120]
[419877275,1775458300080,-716.41,0.00034753,120]
[419877276,1775458300107,-716.41,0.00034753,120]
[419877277,1775458300134,-716.41,0.00034753,120]
[419877278,1775458300160,-716.41,0.00034753,120]
[419877279,1775458300187,-716.41,0.00034753,120]
[419877280,1775458300212,-716.41,0.00034753,120]
[419877281,1775458300238,-716.41,0.00034753,120]
[419877282,1775458300264,-716.41,0.00034753,120]
[419877283,1775458300291,-716.41,0.00034753,120]
[419877284,1775458300318,-716.41,0.00034753,120]
[419877285,1775458300346,-716.41,0.00034753,120]
[419877286,1775458300373,-716.41,0.00034753,120]
[419877287,1775458300399,-716.41,0.00034753,120]
[419877288,1775458300427,-716.41,0.00034753,120]
[419877289,1775458300454,-716.41,0.00034753,120]
[419877290,1775458300480,-716.41,0.00034753,120]
[419877291,1775458300506,-716.41,0.00034753,120]
[419877292,1775458300533,-716.41,0.00034753,120]
[419877293,1775458300559,-716.41,0.00034753,120]
[419877294,1775458300589,-716.41,0.00034753,120]
[419877295,1775458300615,-716.41,0.00034753,120]
[419877296,1775458300642,-716.6325776,0.00034753,120]
[419877297,1775458300668,-500.0,0.00034753,120]
[419877298,1775458300695,-500.0,0.00034753,120]
[419877299,1775458300722,-500.0,0.00034753,120]
[419877300,1775458300748,-500.0,0.00034753,120]
[419877301,1775458300775,-500.0,0.00034753,120]
[419877302,1775458300802,-500.0,0.00034753,120]
[419877303,1775458300828,-500.0,0.00034753,120]
[419877304,1775458300854,-500.0,0.00034753,120]
[419877305,1775458300880,-500.0,0.00034753,120]
[419877306,1775458300907,-500.0,0.00034753,120]
[419877307,1775458300933,-500.0,0.00034753,120]
[419877308,1775458300959,-500.0,0.00034753,120]
[419877309,1775458300986,-500.0,0.00034753,120]
[419877310,1775458301012,-323.21521235,0.00034753,120]
[419877311,1775458301036,-1068.36,0.00034753,120]
[419877312,1775458301061,-1068.36,0.00034753,120]
[419877313,1775458301086,-1068.36,0.00034753,120]
[419877314,1775458301111,-1068.36,0.00034753,120]
[419877315,1775458301135,-1068.36,0.00034753,120]
[419877316,1775458301161,-1068.36,0.00034753,120]
[419877317,1775458301185,-1068.36,0.00034753,120]
[419877318,1775458301211,-1068.36,0.00034753,120]
[419877319,1775458301237,-1068.36,0.00034753,120]
[419877320,1775458301263,-1068.36,0.00034753,120]
[419877321,1775458301290,-1068.36,0.00034753,120]
[419877322,1775458301318,-1068.36,0.00034753,120]
[419877323,1775458301345,-1068.36,0.00034753,120]
[419877324,1775458301372,-1068.36,0.00034753,120]
[419877325,1775458301399,-1068.36,0.00034753,120]
[419877326,1775458301428,-1068.36,0.00034753,120]
[419877327,1775458301454,-1068.36,0.00034753,120]
[419877328,1775458301480,-1068.36,0.00034753,120]
[419877329,1775458301508,-1068.36,0.00034753,120]
[419877330,1775458301535,-1068.36,0.00034753,120]
[419877331,1775458301561,-1068.36,0.00034753,120]
[419877332,1775458301695,-1068.36,0.00034753,120]
[419877333,1775458301722,-1068.36,0.00034753,120]
[419877334,1775458301749,-1068.477,0.00034753,120]
[419877335,1775458301777,-180.0944681,0.00034753,120]
[419877336,1775458301806,-180.0944681,0.00034753,120]
[419877337,1775458301834,-180.0944681,0.00034753,120]
[419877338,1775458301861,-180.0944681,0.00034753,120]
[419877339,1775458301889,-180.0944681,0.00034753,120]
[419877340,1775458301916,-180.0944681,0.00034753,120]
[419877341,1775458301944,-180.0944681,0.00034753,120]
[419877342,1775458301970,-2876.92008686,0.00034753,120]
[419877343,1775458301995,-646.36036202,0.00034753,120]
[419877344,1775458302022,-302.39393501,0.00034753,120]
[419877345,1775458302048,-500.0,0.00034753,120]
[419877346,1775458302075,-500.0,0.00034753,120]
[419877347,1775458302101,-500.0,0.00034753,120]
[419877348,1775458302128,-2000.0,0.00034753,120]
[419877349,1775458302156,-2000.0,0.00034753,120]
[419877350,1775458302184,-2000.0,0.00034753,120]
[419877351,1775458302211,-2000.0,0.00034753,120]
[419877352,1775458302243,-2000.0,0.00034753,120]
[419877353,1775458302270,-1875.96277085,0.00034753,120]
[419877354,1775458302296,-254.3358519,0.00034753,120]
[419877355,1775458302325,-971.86,0.00034753,120]
[419877356,1775458302353,-971.86,0.00034753,120]
[419877357,1775458302380,-971.86,0.00034753,120]
[419877358,1775458302409,-971.86,0.00034753,120]
[419877359,1775458302436,-971.86,0.00034753,120]
[419877360,1775458302463,-971.86,0.00034753,120]
[419877361,1775458302491,-971.86,0.00034753,120]
[419877362,1775458302518,-971.86,0.00034753,120]
[419877363,1775458302546,-971.86,0.00034753,120]
[419877364,1775458302575,-971.86,0.00034753,120]
[419877365,1775458302603,-971.86,0.00034753,120]
[419877366,1775458302630,-971.86,0.00034753,120]
[419877367,1775458302658,-971.86,0.00034753,120]
[419877368,1775458302685,-971.86,0.00034753,120]
[419877369,1775458302712,-971.86,0.00034753,120]
[419877370,1775458302739,-971.86,0.00034753,120]
[419877371,1775458302765,-971.86,0.00034753,120]
[419877372,1775458302792,-971.86,0.00034753,120]
[419877373,1775458302819,-971.86,0.00034753,120]
[419877374,1775458302856,-971.86,0.00034753,120]
[419877375,1775458302894,-971.86,0.00034753,120]
[419877376,1775458302926,-971.86,0.00034753,120]
[419877377,1775458302962,-971.86,0.00034753,120]
[419877378,1775458302997,-971.92432206,0.00034753,120]
[419877379,1775458303043,-992.88,0.00034753,120]
[419877380,1775458303085,-992.88,0.00034753,120]
[419877381,1775458303124,-992.88,0.00034753,120]
[419877382,1775458303163,-992.88,0.00034753,120]
[419877383,1775458303199,-992.88,0.00034753,120]
[419877384,1775458303234,-992.88,0.00034753,120]
[419877385,1775458303272,-992.88,0.00034753,120]
[419877386,1775458303310,-992.88,0.00034753,120]
[419877387,1775458303350,-992.88,0.00034753,120]
[419877388,1775458303391,-992.88,0.00034753,120]
[419877389,1775458303429,-992.88,0.00034753,120]
[419877390,1775458303462,-992.88,0.00034753,120]
[419877391,1775458303493,-992.88,0.00034753,120]
[419877392,1775458303533,-992.88,0.00034753,120]
[419877393,1775458303567,-992.88,0.00034753,120]
[419877394,1775458303605,-992.88,0.00034753,120]
[419877395,1775458303643,-992.88,0.00034753,120]
[419877396,1775458303677,-992.88,0.00034753,120]
[419877397,1775458303711,-992.88,0.00034753,120]
[419877398,1775458303745,-992.88,0.00034753,120]
[419877399,1775458303780,-992.88,0.00034753,120]
[419877400,1775458303814,-992.88,0.00034753,120]
[419877401,1775458303847,-992.88,0.00034753,120]
[419877402,1775458303881,-992.948011,0.00034753,120]
[419877403,1775458303917,-2316.72,0.00034753,120]
[419877404,1775458303951,-2316.72,0.00034753,120]
[419877405,1775458303985,-2316.72,0.00034753,120]
[419877406,1775458304019,-2316.72,0.00034753,120]
[419877407,1775458304052,-2316.72,0.00034753,120]
[419877408,1775458304085,-2316.72,0.00034753,120]
[419877409,1775458304119,-2316.72,0.00034753,120]
[419877410,1775458304152,-2316.72,0.00034753,120]
[419877411,1775458304187,-2316.72,0.00034753,120]
[419877412,1775458304221,-2316.72,0.00034753,120]
[419877413,1775458304260,-2316.72,0.00034753,120]
[419877414,1775458304295,-2316.72,0.00034753,120]
[419877415,1775458304330,-2316.72,0.00034753,120]
[419877416,1775458304502,-2316.72,0.00034753,120]
[419877417,1775458304531,-151.40195972,0.00034753,120]
[419877418,1775458304560,-500.0,0.00034753,120]
[419877419,1775458304592,-500.0,0.00034753,120]
[419877420,1775458304619,-500.0,0.00034753,120]
[419877421,1775458304646,-244.75,0.00034753,120]
[419877422,1775458304676,-168.42172364,0.00034753,120]
[419877423,1775458304705,-168.42172364,0.00034753,120]
[419877424,1775458304733,-168.42172364,0.00034753,120]
[419877425,1775458307269,306.1219256,0.00034753,120]
[419877426,1775458313390,545.22234364,0.00034753,120]
[419877427,1775458329777,299.68006534,0.00034753,120]
[419877428,1775458329835,248.85618743,0.00034753,120]
[419877429,1775458347296,500.0,0.00034753,120]
[419877430,1775458349942,178.68003174,0.00034753,120]
[419877431,1775458353409,3572.56,0.00034753,120]
[419877432,1775458353669,3572.56,0.00034753,120]
[419877433,1775458354149,3572.56,0.00034753,120]
[419877434,1775458354462,3572.56,0.00034753,120]
[419877435,1775458354697,3572.56,0.00034753,120]
[419877436,1775458354929,3572.56,0.00034753,120]
[419877437,1775458355171,3572.56,0.00034753,120]
[419877438,1775458355401,3572.56,0.00034753,120]
[419877439,1775458355649,3572.56,0.00034753,120]
[419877440,1775458355857,3572.56,0.00034753,120]
[419877441,1775458356086,3572.56,0.00034753,120]
[419877442,1775458356358,3572.56,0.00034753,120]
[419877443,1775458356606,3572.56,0.00034753,120]
[419877444,1775458356855,3572.56,0.00034753,120]
[419877445,1775458357114,3572.56,0.00034753,120]
[419877446,1775458357179,302.39393501,0.00034753,120]
[419877447,1775458357340,3572.56,0.00034753,120]
[419877448,1775458357576,3572.56,0.00034753,120]
[419877449,1775458357808,3572.56,0.00034753,120]
[419877450,1775458358152,3572.56,0.00034753,120]
[419877451,1775458358290,3572.56,0.00034753,120]
[419877452,1775458358532,3572.56,0.00034753,120]
[419877453,1775458358881,3572.56,0.00034753,120]
[419877454,1775458359126,3572.56,0.00034753,120]
[419877455,1775458359376,3572.72881301,0.00034753,120]
[419877456,1775458364110,183.50238344,0.00034753,120]
[419877457,1775458364147,210.91393379,0.00034753,120]
[419877458,1775458364182,252.49719472,0.00034753,120]
[419877459,1775458364215,168.66742828,0.00034753,120]
[419877460,1775458364494,354.13899919,0.00034753,120]
[419877461,1775458364529,312.90628013,0.00034753,120]
[419877462,1775458364560,183.50238344,0.00034753,120]
[419877463,1775458364594,252.49719472,0.00034753,120]
[419877464,1775458364690,210.91393379,0.00034753,120]
[419877465,1775458364808,354.13899919,0.00034753,120]
[419877466,1775458364843,312.90628013,0.00034753,120]
[419877467,1775458364875,252.49719472,0.00034753,120]
[419877468,1775458364986,210.91393379,0.00034753,120]
[419877469,1775458365141,354.13899919,0.00034753,120]
[419877470,1775458365175,312.90628013,0.00034753,120]
[419877471,1775458365273,252.49719472,0.00034753,120]
[419877472,1775458365306,210.91393379,0.00034753,120]
[419877473,1775458365458,354.13899919,0.00034753,120]
[419877474,1775458365682,312.90628013,0.00034753,120]
[419877475,1775458365716,252.49719472,0.00034753,120]
[419877476,1775458365749,210.91393379,0.00034753,120]
[419877477,1775458365789,354.13899919,0.00034753,120]
[419877478,1775458365884,312.90628013,0.00034753,120]
[419877479,1775458365918,252.49719472,0.00034753,120]
[419877480,1775458365951,210.91393379,0.00034753,120]
[419877481,1775458366073,354.13899919,0.00034753,120]
[419877482,1775458366241,312.90628013,0.00034753,120]
[419877483,1775458366278,210.91393379,0.00034753,120]
[419877484,1775458366320,252.49719472,0.00034753,120]
[419877485,1775458366366,354.13899919,0.00034753,120]
[419877486,1775458366527,252.49719472,0.00034753,120]
[419877487,1775458366675,354.13899919,0.00034753,120]
[419877488,1775458366803,312.90628013,0.00034753,120]
[419877489,1775458366985,354.13899919,0.00034753,120]
[419877490,1775458367095,312.90628013,0.00034753,120]
[419877491,1775458367284,354.13899919,0.00034753,120]
[419877492,1775458367334,228.66077804,0.00034753,120]
[419877493,1775458367402,312.90628013,0.00034753,120]
[419877494,1775458367599,354.13899919,0.00034753,120]
[419877495,1775458367679,171.19169561,0.00034753,120]
[419877496,1775458367718,312.90628013,0.00034753,120]
[419877497,1775458367904,354.13899919,0.00034753,120]
[419877498,1775458367937,164.7764286,0.00034753,120]
[419877499,1775458368008,312.90628013,0.00034753,120]
[419877500,1775458368148,183.50238344,0.00034753,120]
[419877501,1775458368444,312.90628013,0.00034753,120]
[419877502,1775458368478,354.13899919,0.00034753,120]
[419877503,1775458368584,312.90628013,0.00034753,120]
[419877504,1775458368618,227.68054353,0.00034753,120]
[419877505,1775458368653,354.13899919,0.00034753,120]
[419877506,1775458368921,354.13899919,0.00034753,120]
[419877507,1775458372983,257.91322925,0.00034753,120]
[419877508,1775458373799,500.0,0.00034753,120]
[419877509,1775458374029,500.0,0.00034753,120]
[419877510,1775458374083,165.81050908,0.00034753,120]
[419877511,1775458374249,500.0,0.00034753,120]
[419877512,1775458374289,312.90628013,0.00034753,120]
[419877513,1775458374473,500.0,0.00034753,120]
[419877514,1775458374611,312.90628013,0.00034753,120]
[419877515,1775458374696,500.0,0.00034753,120]
[419877516,1775458374913,500.0,0.00034753,120]
[419877517,1775458375296,646.36036202,0.00034753,120]
[419877518,1775458375420,598.97121767,0.00034753,120]
[419877519,1775458378904,555.5514195,0.00034753,120]
[419877520,1775458379045,1039.44659517,0.00034753,120]
[419877521,1775458381886,152.16196461,0.00034753,120]
[419877522,1775458382114,290.47908747,0.00034753,120]
[419877523,1775458385366,305.79867025,0.00034753,120]
[419877524,1775458407797,1084.68,0.00034753,120]
[419877525,1775458408061,1084.68,0.00034753,120]
[419877526,1775458408314,1084.68,0.00034753,120]
[419877527,1775458408594,1084.68,0.00034753,120]
[419877528,1775458408832,1084.68,0.00034753,120]
[419877529,1775458409072,1084.68,0.00034753,120]
[419877530,1775458409398,1084.68,0.00034753,120]
[419877531,1775458409506,1084.68,0.00034753,120]
[419877532,1775458409733,1084.68,0.00034753,120]
[419877533,1775458409951,1084.68,0.00034753,120]
[419877534,1775458410169,1084.68,0.00034753,120]
[419877535,1775458410385,1084.68,0.00034753,120]
[419877536,1775458410599,1084.68,0.00034753,120]
[419877537,1775458410833,1084.68,0.00034753,120]
[419877538,1775458411052,1084.68,0.00034753,120]
[419877539,1775458411296,1084.68,0.00034753,120]
[419877540,1775458411519,1084.68,0.00034753,120]
[419877541,1775458411735,1084.68,0.00034753,120]
[419877542,1775458411961,1084.68,0.00034753,120]
[419877543,1775458412193,1084.68,0.00034753,120]
[419877544,1775458412624,1084.68,0.00034753,120]
[419877545,1775458412842,1084.68,0.00034753,120]
[419877546,1775458413057,1084.68,0.00034753,120]
[419877547,1775458413291,1084.76315866,0.00034753,120]
[419877548,1775458418017,2000.0,0.00034753,120]
[419877549,1775458418251,2000.0,0.00034753,120]
[419877550,1775458418320,176.43924758,0.00034753,120]
[419877551,1775458418483,2000.0,0.00034753,120]
[419877552,1775458418859,2000.0,0.00034753,120]
[419877553,1775458419077,2000.0,0.00034753,120]
[419877554,1775458419317,1875.96277085,0.00034753,120]
[419877555,1775458420038,155.29794486,0.00034753,120]
[419877556,1775458443222,237.80041184,0.00034753,120]
[419877557,1775458443678,182.90320949,0.00034753,120]
[419877558,1775458446197,500.0,0.00034753,120]
[419877559,1775458446654,500.0,0.00034753,120]
[419877560,1775458446867,500.0,0.00034753,120]
[419877561,1775458447088,500.0,0.00034753,120]
[419877562,1775458447316,500.0,0.00034753,120]
[419877563,1775458447532,556.02796217,0.00034753,120]
[419877564,1775458449794,151.90039852,0.00034753,120]
[419877565,1775458456421,500.0,0.00034753,120]
[419877566,1775458456664,500.0,0.00034753,120]
[419877567,1775458456902,500.0,0.00034753,120]
[419877568,1775458457136,500.0,0.00034753,120]
[419877569,1775458457363,543.60080554,0.00034753,120]
[419877570,1775458482393,179.8896413,0.00034753,120]
[419877571,1775458483986,258.24499523,0.00034753,120]
[419877572,1775458484344,168.66742827,0.00034753,120]
[419877573,1775458484377,287.60312968,0.00034753,120]
[419877574,1775458484411,480.19200477,0.00034753,120]
[419877575,1775458484443,205.77782784,0.00034753,120]
[419877576,1775458484476,168.99991189,0.00034753,120]
[419877577,1775458484508,215.54586856,0.00034753,120]
[419877578,1775458484753,205.77782784,0.00034753,120]
[419877579,1775458484785,168.99991189,0.00034753,120]
[419877580,1775458484831,287.60312968,0.00034753,120]
[419877581,1775458484865,215.54586856,0.00034753,120]
[419877582,1775458484900,480.19200477,0.00034753,120]
[419877583,1775458485049,205.77782784,0.00034753,120]
[419877584,1775458485091,287.60312968,0.00034753,120]
[419877585,1775458485125,168.99991189,0.00034753,120]
[419877586,1775458485156,215.54586856,0.00034753,120]
[419877587,1775458485191,480.19200477,0.00034753,120]
[419877588,1775458485367,205.77782784,0.00034753,120]
[419877589,1775458485422,168.99991189,0.00034753,120]
[419877590,1775458485455,287.60312968,0.00034753,120]
[419877591,1775458485489,480.19200477,0.00034753,120]
[419877592,1775458485766,205.77782784,0.00034753,120]
[419877593,1775458485799,168.99991189,0.00034753,120]
[419877594,1775458485831,287.60312968,0.00034753,120]
[419877595,1775458485864,480.19200477,0.00034753,120]
[419877596,1775458486137,205.77782784,0.00034753,120]
[419877597,1775458486171,287.60312968,0.00034753,120]
[419877598,1775458486205,480.19200477,0.00034753,120]
[419877599,1775458486454,205.77782784,0.00034753,120]
[419877600,1775458486489,480.19200477,0.00034753,120]
[419877601,1775458486522,287.60312968,0.00034753,120]
[419877602,1775458486751,205.77782784,0.00034753,120]
[419877603,1775458486808,480.19200477,0.00034753,120]
[419877604,1775458487246,480.19200477,0.00034753,120]
[419877605,1775458487504,205.77782784,0.00034753,120]
[419877606,1775458487540,480.19200477,0.00034753,120]
[419877607,1775458487790,205.77782784,0.00034753,120]
[419877608,1775458487861,480.19200477,0.00034753,120]
[419877609,1775458488084,205.77782784,0.00034753,120]
[419877610,1775458488160,480.19200477,0.00034753,120]
[419877611,1775458488526,205.77782784,0.00034753,120]
[419877612,1775458488603,480.19200477,0.00034753,120]
[419877613,1775458488814,205.77782784,0.00034753,120]
[419877614,1775458488909,480.19200477,0.00034753,120]
[419877615,1775458489118,205.77782784,0.00034753,120]
[419877616,1775458496527,157.95541784,0.00034753,120]
[419877617,1775458509168,500.0,0.00034753,120]
[419877618,1775458509398,500.0,0.00034753,120]
[419877619,1775458509617,500.0,0.00034753,120]
[419877620,1775458509836,500.0,0.00034753,120]
[419877621,1775458510058,515.42314348,0.00034753,120]
[419877622,1775458512761,357.57405121,0.0003,120]
[419877623,1775458532084,151.33694691,0.00034753,120]
[419877625,1775458543760,606.98655594,0.00034753,120]
[419877626,1775458556247,276.19507769,0.00034753,120]
[419877627,1775458556307,1110.17,0.00034753,120]
[419877628,1775458556537,1110.17,0.00034753,120]